bitfinex/quotes_SOLUSD_20260125
["timestamp","ask_amount","ask_price","bid_price","bid_amount"]
[1769365694394,4.5,121.43,121.37,5.32779715]
[1769365694912,4.5,121.42,121.32,9.6237462]
[1769365695230,4.5,121.42,121.36,5.32779715]
[1769365696029,9.82779715,121.42,121.35,5.32779715]
[1769365696214,9.82779715,121.44,121.36,5.32779715]
[1769365696528,4.5,121.43,121.36,5.32779715]
[1769365696700,4.5,121.47,121.4,5.32779715]
[1769365696905,4.5,121.47,121.41,5.32779715]
[1769365697213,9.82779715,121.47,121.4,5.32779715]
[1769365697828,4.5,121.46,121.4,5.32779715]
[1769365698016,4.5,121.49,121.42,5.32779715]
[1769365698220,4.5,121.49,121.43,5.32779715]
[1769365698815,4.5,121.48,121.41,5.32779715]
[1769365699016,4.5,121.47,121.41,5.32779715]
[1769365699205,4.5,121.47,121.4,5.32779715]
[1769365699406,4.5,121.46,121.4,5.32779715]
[1769365700406,4.5,121.45,121.39,5.32779715]
[1769365701302,4.5,121.47,121.41,5.32779715]
[1769365701905,4.5,121.46,121.4,5.32779715]
[1769365702328,4.5,121.46,121.41,5.32779715]
[1769365704404,9.82779715,121.48,121.37,5.34408856]
[1769365704735,4.5,121.46,121.41,5.32779715]
[1769365705026,4.5,121.48,121.42,5.32779715]
[1769365706136,4.5,121.48,121.41,43.86052046]
[1769365706439,4.5,121.48,121.42,5.32779715]
[1769365707946,4.5,121.47,121.41,49.18831761]
[1769365708124,4.5,121.46,121.41,49.18831761]
[1769365708839,4.5,121.5,121.44,5.32779715]
[1769365709833,4.5,121.48,121.42,5.32779715]
[1769365710707,4.5,121.48,121.43,5.32779715]
[1769365710911,4.5,121.48,121.44,5.32779715]
[1769365711131,4.5,121.5,121.44,5.32779715]
[1769365712018,4.5,121.5,121.45,5.32779715]
[1769365712213,4.5,121.5,121.41,49.18831761]
[1769365712431,4.5,121.5,121.45,5.32779715]
[1769365712636,4.5,121.52,121.45,5.32779715]
[1769365712840,4.5,121.54,121.49,5.32779715]
[1769365713734,4.5,121.53,121.47,5.32779715]
[1769365713926,4.5,121.53,121.47,49.18831761]
[1769365714431,4.5,121.53,121.48,5.32779715]
[1769365714831,4.5,121.53,121.47,43.86052046]
[1769365715134,4.5,121.51,121.45,5.32779715]
[1769365715333,4.5,121.5,121.44,43.86052046]
[1769365715544,4.5,121.49,121.44,43.86052046]
[1769365715838,4.5,121.49,121.44,49.18831761]
[1769365716010,4.5,121.49,121.44,43.86052046]
[1769365717343,4.12906359,121.49,121.39,4.22612388]
[1769365717546,4.12906359,121.51,121.46,4.22612388]
[1769365717750,5.32779715,121.53,121.38,9.11510261]
[1769365717751,4.12906359,121.53,121.47,9.55392103]
[1769365718226,4.12906359,121.51,121.45,5.32779715]
[1769365719025,4.12906359,121.49,121.41,4.22612388]
[1769365719231,4.12906359,121.48,121.42,5.32779715]
[1769365719427,4.12906359,121.48,121.43,5.32779715]
[1769365720341,4.12906359,121.48,121.43,9.55392103]
[1769365721819,4.12906359,121.48,121.43,4.22612388]
[1769365722536,4.12906359,121.48,121.43,9.55392103]
[1769365722842,4.12906359,121.48,121.44,5.32779715]
[1769365723027,4.12906359,121.48,121.43,9.55392103]
[1769365723218,4.12906359,121.49,121.43,9.55392103]
[1769365724345,4.12906359,121.49,121.44,9.55392103]
[1769365725048,4.12906359,121.55,121.45,5.32779715]
[1769365725241,4.12906359,121.51,121.46,5.32779715]
[1769365726144,4.12906359,121.53,121.47,9.55392103]
[1769365726663,4.12906359,121.51,121.45,5.32779715]
[1769365726830,4.12906359,121.51,121.45,9.55392103]
[1769365727025,4.12906359,121.51,121.45,4.22612388]
[1769365727652,4.12906359,121.51,121.45,9.55392103]
[1769365728189,4.12906359,121.51,121.45,4.22612388]
[1769365729131,4.12906359,121.5,121.44,4.22612388]
[1769365729346,4.12906359,121.49,121.43,5.32779715]
[1769365729846,4.12906359,121.49,121.42,9.55392103]
[1769365730150,4.12906359,121.47,121.42,4.22612388]
[1769365732055,4.12906359,121.47,121.42,66.42612388]
[1769365733039,4.12906359,121.47,121.42,71.75392103]
[1769365734655,4.12906359,121.47,121.42,62.2]
[1769365735849,4.12906359,121.47,121.42,66.42612388]
[1769365738444,4.12906359,121.47,121.42,71.75392103]
[1769365739454,4.12906359,121.49,121.43,9.55392103]
[1769365739661,4.12906359,121.49,121.44,5.32779715]
[1769365740978,4.12906359,121.49,121.44,9.55392103]
[1769365741561,4.12906359,121.49,121.44,4.22612388]
[1769365742773,4.12906359,121.48,121.43,5.32779715]
[1769365742975,4.12906359,121.48,121.42,67.52779715]
[1769365743154,4.39771185,121.47,121.42,62.2]
[1769365743475,4.39771185,121.45,121.42,62.2]
[1769365743662,4.39771185,121.45,121.4,9.40389608]
[1769365744274,4.39771185,121.45,121.41,4.07609893]
[1769365744464,4.39771185,121.45,121.41,9.40389608]
[1769365744976,4.39771185,121.49,121.44,9.40389608]
[1769365745370,4.39771185,121.48,121.43,9.40389608]
[1769365746069,4.39771185,121.48,121.44,5.32779715]
[1769365746271,4.39771185,121.49,121.44,9.40389608]
[1769365747472,4.39771185,121.49,121.44,5.32779715]
[1769365747671,4.39771185,121.49,121.44,9.40389608]
[1769365747868,4.39771185,121.49,121.44,4.07609893]
[1769365748058,4.39771185,121.49,121.44,9.40389608]
[1769365748487,4.39771185,121.49,121.44,71.60389608]
[1769365748985,4.39771185,121.48,121.43,9.40389608]
[1769365749788,4.39771185,121.48,121.44,5.32779715]
[1769365749986,4.39771185,121.49,121.44,9.40389608]
[1769365750193,4.39771185,121.49,121.44,4.07609893]
[1769365750363,4.39771185,121.48,121.43,9.40389608]
[1769365750876,4.39771185,121.48,121.43,4.07609893]
[1769365751082,4.39771185,121.48,121.43,9.40389608]
[1769365751590,4.39771185,121.48,121.43,9.40699744]
[1769365752661,4.39771185,121.48,121.44,5.33089851]
[1769365752980,4.39771185,121.48,121.44,9.40699744]
[1769365753684,4.39771185,121.5,121.44,9.40699744]
[1769365754390,8.22866869,121.53,121.39,62.2]
[1769365754391,4.39771185,121.53,121.48,5.33089851]
[1769365754568,8.22673409,121.56,121.41,5.33089851]
[1769365754569,4.39771185,121.56,121.51,5.33089851]
[1769365755260,4.39771185,121.56,121.52,5.33089851]
[1769365755689,4.14056294,121.58,121.53,13.55931947]
[1769365756072,4.14056294,121.56,121.51,13.56030185]
[1769365756887,4.14056294,121.56,121.52,8.22903478]
[1769365757259,4.14056294,121.56,121.52,13.55993329]
[1769365757682,4.14056294,121.55,121.51,8.22961011]
[1769365757863,4.14056294,121.55,121.5,8.23033573]
[1769365758064,4.14056294,121.55,121.51,8.22970634]
[1769365758688,4.14056294,121.55,121.5,13.56106994]
[1769365759072,4.14056294,121.52,121.46,4.26480132]
[1769365759268,4.14056294,121.51,121.45,5.33089851]
[1769365759464,4.14056294,121.51,121.44,4.26480132]
[1769365759672,4.14056294,121.5,121.45,8.23384108]
[1769365759878,4.14056294,121.49,121.45,8.23384108]
[1769365762388,4.14056294,121.49,121.45,13.56473959]
[1769365762689,4.14056294,121.51,121.46,5.33089851]
[1769365762887,4.14056294,121.51,121.47,5.33089851]
[1769365763064,4.14056294,121.51,121.46,5.33089851]
[1769365763264,4.14056294,121.51,121.46,9.59569983]
[1769365764075,4.14056294,121.51,121.46,17.828255]
[1769365765383,4.14056294,121.51,121.46,12.49735649]
[1769365765783,4.14056294,121.51,121.46,17.828255]
[1769365766283,4.14056294,121.51,121.47,9.59569983]
[1769365766491,4.14056294,121.51,121.46,13.56345368]
[1769365766673,4.14056294,121.51,121.46,8.23255517]
[1769365766990,4.14056294,121.51,121.46,12.49735649]
[1769365767694,5.33089851,121.53,121.47,9.59569983]
[1769365767888,4.14056294,121.52,121.47,9.59569983]
[1769365768389,4.14056294,121.52,121.47,4.26480132]
[1769365768988,4.14056294,121.51,121.47,4.26480132]
[1769365770089,5.33089851,121.52,121.47,17.82785921]
[1769365770090,4.14056294,121.52,121.47,17.82785921]
[1769365770992,4.14056294,121.52,121.47,100.60907267]
[1769365772094,4.14056294,121.52,121.47,95.27817416]
[1769365772280,4.14056294,121.52,121.47,100.60907267]
[1769365773601,4.3821666,121.56,121.5,4.25496672]
[1769365773897,4.3821666,121.52,121.49,62.2]
[1769365774472,4.3821666,121.51,121.49,62.2]
[1769365775678,5.33089851,121.53,121.49,70.43078314]
[1769365775679,4.3821666,121.53,121.49,70.43078314]
[1769365776699,4.3821666,121.53,121.49,8.23078314]
[1769365778701,4.3821666,121.56,121.51,4.25496672]
[1769365779801,4.3821666,121.56,121.51,12.48444226]
[1769365780500,4.3821666,121.56,121.51,8.22947554]
[1769365781307,4.3821666,121.55,121.51,8.22947554]
[1769365781604,4.3821666,121.52,121.49,70.43106087]
[1769365781897,4.3821666,121.52,121.48,8.2318077]
[1769365782583,4.3821666,121.52,121.48,12.48677442]
[1769365785002,4.3821666,121.52,121.48,8.2318077]
[1769365785402,4.3821666,121.52,121.48,17.81767293]
[1769365785906,4.3821666,121.52,121.48,8.2318077]
[1769365786605,4.3821666,121.52,121.48,70.4318077]
[1769365787906,4.3821666,121.52,121.48,74.68677442]
[1769365789511,4.3821666,121.52,121.48,80.01767293]
[1769365790410,4.3821666,121.53,121.49,12.48589596]
[1769365790607,4.3821666,121.53,121.48,67.53089851]
[1769365790608,4.3821666,121.5,121.47,70.43219222]
[1769365790790,4.3821666,121.5,121.47,8.23219222]
[1769365790989,4.3821666,121.5,121.46,62.2]
[1769365791209,4.3821666,121.48,121.44,8.2345191]
[1769365791785,4.3821666,121.48,121.44,12.48948582]
[1769365794088,9.71306511,121.51,121.45,4.25496672]
[1769365794300,4.3821666,121.51,121.46,4.25496672]
[1769365795109,4.3821666,121.5,121.46,4.25496672]
[1769365795414,4.3821666,121.5,121.46,17.81865394]
[1769365795613,4.3821666,121.5,121.46,8.23278871]
[1769365796312,4.3821666,121.5,121.46,12.48775543]
[1769365798323,4.3821666,121.5,121.46,74.68775543]
[1769365800403,4.3821666,121.51,121.46,72.75400089]
[1769365800608,4.3821666,121.5,121.46,70.43278871]
[1769365800914,4.3821666,121.49,121.46,62.2]
[1769365801306,4.3821666,121.47,121.43,70.43481567]
[1769365801715,4.3821666,121.47,121.44,8.23442414]
[1769365802215,4.3821666,121.47,121.43,74.68985022]
[1769365802891,4.3821666,121.47,121.43,62.2]
[1769365803090,4.19659782,121.46,121.43,62.2]
[1769365803619,4.19659782,121.44,121.4,8.23681521]
[1769365803803,4.19659782,121.44,121.4,12.33184771]
[1769365804005,4.19659782,121.44,121.41,8.23641287]
[1769365804504,12.42637314,121.51,121.43,4.0950325]
[1769365804825,4.19659782,121.49,121.44,6.41624468]
[1769365805120,4.19659782,121.48,121.44,4.0950325]
[1769365806706,4.19659782,121.49,121.45,4.0950325]
[1769365806911,4.19659782,121.49,121.43,14.65117611]
[1769365807107,4.19659782,121.47,121.42,8.23566346]
[1769365807426,4.19659782,121.46,121.42,8.23566346]
[1769365808331,4.19659782,121.46,121.43,8.23507342]
[1769365808506,4.19659782,121.5,121.45,4.0950325]
[1769365808708,4.19659782,121.5,121.46,2.32121218]
[1769365808919,4.19659782,121.5,121.46,14.64926042]
[1769365809221,4.19659782,121.5,121.46,12.32804824]
[1769365809423,4.19659782,121.5,121.46,14.64926042]
[1769365809631,4.19659782,121.5,121.47,2.32121218]
[1769365809928,4.19659782,121.5,121.46,14.64926042]
[1769365810130,4.19659782,121.5,121.46,8.23301574]
[1769365810633,4.19659782,121.5,121.46,10.55422792]
[1769365811135,4.19659782,121.5,121.47,2.32121218]
[1769365811433,4.19659782,121.53,121.49,6.41624468]
[1769365811620,4.19659782,121.53,121.49,9.42123535]
[1769365812224,4.19659782,121.53,121.49,5.32620285]
[1769365812438,4.19659782,121.53,121.48,9.42123535]
[1769365812728,4.19659782,121.49,121.44,8.2341409]
[1769365812909,4.19659782,121.48,121.44,8.2341409]
[1769365813103,4.19659782,121.48,121.43,8.23497775]
[1769365813727,4.19659782,121.48,121.43,4.0950325]
[1769365814030,4.19659782,121.48,121.44,8.23440099]
[1769365815034,4.27052635,121.47,121.43,12.33001007]
[1769365815747,9.5967292,121.48,121.44,4.27516176]
[1769365816808,4.27052635,121.49,121.44,12.50947755]
[1769365817431,4.27052635,121.49,121.45,4.27516176]
[1769365819023,4.27052635,121.49,121.45,12.50889734]
[1769365819230,4.27052635,121.51,121.47,4.27516176]
[1769365820031,4.27052635,121.53,121.48,4.27516176]
[1769365820407,4.27052635,121.52,121.47,4.27516176]
[1769365820608,4.27052635,121.52,121.48,4.27516176]
[1769365821035,4.27052635,121.52,121.48,12.50668546]
[1769365822751,4.27052635,121.52,121.48,17.83288831]
[1769365823042,4.27052635,121.54,121.5,9.60136461]
[1769365823225,4.27052635,121.55,121.51,4.27516176]
[1769365824247,4.27052635,121.56,121.51,4.27516176]
[1769365824551,4.27052635,121.58,121.53,9.60136461]
[1769365825034,4.27052635,121.58,121.53,17.82943987]
[1769365826039,4.27052635,121.58,121.54,9.60136461]
[1769365826547,4.27052635,121.6,121.56,9.60136461]
[1769365827049,4.27052635,121.6,121.56,12.50150183]
[1769365827350,4.27052635,121.6,121.55,17.82814167]
[1769365827738,0.2,121.61,121.58,4.27516176]
[1769365828142,0.2,121.61,121.57,4.27516176]
[1769365828338,4.47052635,121.61,121.57,4.27516176]
[1769365828931,4.47052635,121.61,121.56,17.82765493]
[1769365829130,4.47052635,121.61,121.56,12.50145208]
[1769365830047,9.7967292,121.61,121.56,12.50145208]
[1769365830232,4.27052635,121.6,121.56,8.22629032]
[1769365830426,4.27052635,121.59,121.55,74.701928]
[1769365831135,9.7967292,121.61,121.56,12.50148832]
[1769365831637,4.27052635,121.6,121.56,12.50148832]
[1769365832558,4.27052635,121.59,121.55,74.70205502]
[1769365832767,4.27052635,121.58,121.55,62.2]
[1769365833274,4.27052635,121.58,121.55,70.42697099]
[1769365833452,4.35138643,121.59,121.55,74.53086447]
[1769365835552,4.35138643,121.58,121.55,62.2]
[1769365835757,9.67758928,121.57,121.53,70.42816659]
[1769365836055,4.35138643,121.57,121.54,8.2276724]
[1769365836247,4.35138643,121.57,121.54,70.4276724]
[1769365837079,4.35138643,121.57,121.54,62.2]
[1769365837287,4.35138643,121.56,121.52,70.42878027]
[1769365837493,4.35138643,121.55,121.52,62.2]
[1769365837646,4.35138643,121.55,121.5,4.10389348]
[1769365837647,4.35138643,121.54,121.5,4.10389348]
[1769365837847,4.35138643,121.53,121.48,24.6823278]
[1769365838165,4.35138643,121.53,121.49,8.23113013]
[1769365838561,4.35138643,121.53,121.49,12.33502361]
[1769365838754,6.67091521,121.56,121.5,4.10389348]
[1769365838955,6.67091521,121.56,121.51,4.10389348]
[1769365839270,4.35138643,121.56,121.51,4.10389348]
[1769365840568,4.35138643,121.56,121.52,4.10389348]
[1769365840871,9.67614993,121.56,121.52,8.22847372]
[1769365841848,4.35138643,121.56,121.52,8.22847372]
[1769365842079,4.35138643,121.54,121.51,8.22945832]
[1769365842963,4.35138643,121.54,121.5,12.33410283]
[1769365843148,4.35138643,121.52,121.49,8.23100016]
[1769365843350,4.35138643,121.52,121.49,70.43100016]
[1769365844159,9.67614993,121.52,121.49,70.43100016]
[1769365844366,9.67614993,121.52,121.49,8.23100016]
[1769365844675,9.67614993,121.52,121.48,4.10389348]
[1769365844876,4.35138643,121.51,121.46,24.68578951]
[1769365845579,4.35138643,121.51,121.47,8.2319723]
[1769365845792,4.35138643,121.51,121.47,4.10389348]
[1769365846380,5.3247635,121.52,121.47,4.10389348]
[1769365846556,9.67614993,121.53,121.47,4.10389348]
[1769365846952,4.35138643,121.53,121.48,4.10389348]
[1769365847967,5.3247635,121.53,121.48,12.33520009]
[1769365848185,9.67614993,121.52,121.48,8.23130661]
[1769365849058,9.67614993,121.52,121.48,12.33520009]
[1769365851180,4.35138643,121.52,121.48,12.33520009]
[1769365852081,4.35138643,121.51,121.48,8.23130661]
[1769365852991,5.3247635,121.53,121.48,8.23130661]
[1769365852992,4.35138643,121.52,121.48,12.33520009]
[1769365853689,5.3247635,121.53,121.48,12.33520009]
[1769365853690,9.67614993,121.53,121.49,4.10389348]
[1769365853992,9.67614993,121.53,121.49,66.30389348]
[1769365854287,9.67614993,121.53,121.49,74.53490077]
[1769365855595,4.35138643,121.55,121.51,4.10389348]
[1769365857100,4.35138643,121.54,121.5,74.53397164]
[1769365857277,9.67614993,121.53,121.5,62.2]
[1769365857484,4.35138643,121.5,121.47,8.23216047]
[1769365859499,4.35138643,121.51,121.47,8.23216047]
[1769365859992,4.35138643,121.51,121.47,12.33605395]
[1769365860370,4.35138643,121.53,121.48,4.10389348]
[1769365860590,9.67614993,121.53,121.48,4.10389348]
[1769365861394,4.35138643,121.52,121.48,4.10389348]
[1769365861897,4.35138643,121.52,121.48,12.33504327]
[1769365864299,4.30687242,121.53,121.49,4.22261877]
[1769365865100,9.63163592,121.55,121.49,4.22261877]
[1769365865289,4.30687242,121.55,121.51,8.22977532]
[1769365866201,4.30687242,121.54,121.5,8.230124]
[1769365866412,4.30687242,121.53,121.49,62.2]
[1769365866580,4.30687242,121.54,121.5,12.45299171]
[1769365867901,4.30687242,121.54,121.5,74.65299171]
[1769365868403,4.30687242,121.57,121.52,9.54738227]
[1769365868904,4.30687242,121.57,121.53,4.22261877]
[1769365869306,4.30687242,121.57,121.53,12.4510384]
[1769365869909,4.30687242,121.57,121.53,4.22261877]
[1769365870086,4.30687242,121.57,121.52,12.45139831]
[1769365870287,4.30687242,121.57,121.53,8.22835333]
[1769365871389,4.30687242,121.59,121.55,6.54131805]
[1769365871594,4.30687242,121.59,121.55,4.22261877]
[1769365871908,4.30687242,121.59,121.56,4.22261877]
[1769365872114,4.30687242,121.6,121.56,4.22261877]
[1769365872500,4.30687242,121.6,121.55,9.54400038]
[1769365872808,4.30687242,121.6,121.56,9.54400038]
[1769365873216,4.30687242,121.6,121.56,4.22261877]
[1769365873625,4.30687242,121.6,121.56,12.44887635]
[1769365873918,4.30687242,121.6,121.56,4.22261877]
[1769365874117,4.30687242,121.6,121.55,17.7698292]
[1769365874510,4.30687242,121.59,121.54,8.22743959]
[1769365874692,4.30687242,121.58,121.54,8.22743959]
[1769365875017,4.30687242,121.57,121.53,4.22261877]
[1769365875619,4.05783451,121.59,121.55,17.82441629]
[1769365875993,4.05783451,121.6,121.56,9.5975569]
[1769365876194,4.05783451,121.6,121.56,4.27713338]
[1769365876695,4.05783451,121.6,121.55,17.82441629]
[1769365877515,4.05783451,121.58,121.55,4.27713338]
[1769365877719,4.05783451,121.59,121.55,4.27713338]
[1769365878008,4.05783451,121.59,121.55,12.50414164]
[1769365878220,4.05783451,121.6,121.56,9.5975569]
[1769365878818,4.25783451,121.61,121.57,4.27713338]
[1769365879204,4.25783451,121.61,121.56,9.5975569]
[1769365879589,4.25783451,121.61,121.57,17.82267896]
[1769365879808,4.25783451,121.61,121.57,12.50225544]
[1769365879986,4.25783451,121.61,121.57,17.82267896]
[1769365880193,0.2,121.61,121.58,9.5975569]
[1769365880499,0.2,121.61,121.59,4.27713338]
[1769365880690,0.2,121.61,121.59,9.5975569]
[1769365880890,0.2,121.61,121.59,4.27713338]
[1769365881721,0.2,121.61,121.59,12.50137529]
[1769365881890,0.2,121.63,121.6,9.5975569]
[1769365882593,0.2,121.63,121.61,5.32042352]
[1769365883105,0.2,121.63,121.6,71.7975569]
[1769365883806,0.2,121.63,121.6,80.0211004]
[1769365884405,0.2,121.63,121.61,5.32042352]
[1769365884802,1e-08,121.63,121.62,9.5975569]
[1769365885025,1e-08,121.64,121.62,9.5975569]
[1769365885194,1e-08,121.64,121.63,5.32042352]
[1769365885394,1e-08,121.64,121.62,4.27713338]
[1769365885395,1e-08,121.64,121.62,9.5975569]
[1769365885891,1e-08,121.64,121.63,17.64207936]
[1769365886096,4.25783451,121.68,121.64,4.1]
[1769365886395,0.2,121.68,121.65,9.42042352]
[1769365887233,4.25783451,121.68,121.64,9.42042352]
[1769365887518,4.05783451,121.67,121.62,17.64257192]
[1769365888345,4.05783451,121.67,121.63,9.42042352]
[1769365888693,4.05783451,121.67,121.63,5.32042352]
[1769365889015,4.05783451,121.67,121.63,9.42042352]
[1769365889491,4.05783451,121.67,121.64,13.54140346]
[1769365889724,0.2,121.68,121.65,5.32042352]
[1769365889939,4.25783451,121.68,121.64,17.64140346]
[1769365890535,0.2,121.68,121.66,4.1]
[1769365890741,0.2,121.68,121.66,9.42042352]
[1769365890950,0.2,121.68,121.65,5.32042352]
[1769365891153,0.2,121.68,121.64,5.32042352]
[1769365891154,4.25783451,121.68,121.64,5.32042352]
[1769365891320,4.05783451,121.67,121.62,13.54242393]
[1769365891740,4.05783451,121.66,121.61,17.64316397]
[1769365892554,4.05783451,121.66,121.62,8.2222523]
[1769365892747,9.57825803,121.68,121.63,4.1]
[1769365892929,9.57825803,121.68,121.63,9.42042352]
[1769365892930,4.25783451,121.68,121.63,9.42042352]
[1769365893754,4.25783451,121.68,121.63,17.64203993]
[1769365894458,4.25783451,121.68,121.63,5.32042352]
[1769365894757,4.052574,121.67,121.63,8.22159575]
[1769365895853,4.052574,121.67,121.62,17.64245474]
[1769365896749,4.052574,121.67,121.62,8.22203122]
[1769365896932,4.052574,121.66,121.62,8.22203122]
[1769365897141,4.052574,121.64,121.61,62.2]
[1769365897537,4.052574,121.64,121.59,79.84443325]
[1769365898158,4.052574,121.64,121.6,4.1]
[1769365899833,4.052574,121.64,121.6,9.42042352]
[1769365900253,4.052574,121.66,121.61,17.64343149]
[1769365900548,4.052574,121.65,121.6,13.54378093]
[1769365900752,4.052574,121.65,121.6,17.64378093]
[1769365900932,4.052574,121.65,121.6,79.84378093]
[1769365901649,4.052574,121.65,121.61,4.1]
[1769365901953,4.052574,121.65,121.61,9.42042352]
[1769365902153,4.052574,121.65,121.61,17.64304675]
[1769365902457,4.052574,121.65,121.61,12.32262323]
[1769365903137,4.052574,121.62,121.57,41.55166778]
[1769365903344,5.32042352,121.62,121.58,8.2246998]
[1769365903545,4.052574,121.61,121.58,8.2246998]
[1769365903747,4.052574,121.6,121.56,4.1]
[1769365903950,5.32042352,121.62,121.57,12.32570825]
[1769365904158,9.37299752,121.62,121.57,12.32570825]
[1769365904458,4.052574,121.61,121.57,12.32570825]
[1769365906051,9.37299752,121.61,121.57,8.22570825]
[1769365906351,4.052574,121.61,121.57,17.64613177]
[1769365906558,4.052574,121.61,121.57,38.21041572]
[1769365908870,4.052574,121.61,121.57,12.32570825]
[1769365910541,4.052574,121.6,121.57,8.22570825]
[1769365911469,9.37299752,121.6,121.56,12.32604209]
[1769365912264,4.052574,121.59,121.56,12.32604209]
[1769365912450,4.052574,121.59,121.56,74.52604209]
[1769365914064,4.052574,121.56,121.52,20.57149933]
[1769365914252,3.9746681,121.56,121.52,24.67149933]
[1769365914456,2.31796865,121.58,121.53,12.40572946]
[1769365914657,2.31796865,121.59,121.54,4.1779059]
[1769365915554,8.22259011,121.62,121.53,12.40572946]
[1769365915762,2.31796865,121.59,121.53,12.40572946]
[1769365916265,4.052574,121.58,121.53,12.40572946]
[1769365916444,6.37054265,121.58,121.54,4.1779059]
[1769365916844,4.052574,121.58,121.54,4.1779059]
[1769365917068,6.37054265,121.58,121.54,4.1779059]
[1769365918165,6.37054265,121.58,121.54,12.40538802]
[1769365919853,4.052574,121.57,121.54,12.40538802]
[1769365920250,4.052574,121.56,121.53,8.22827076]
[1769365920574,4.052574,121.56,121.54,8.22770494]
[1769365920748,4.052574,121.56,121.53,70.42828704]
[1769365921070,4.052574,121.56,121.54,8.22772794]
[1769365922059,6.37054265,121.58,121.54,12.40563384]
[1769365922260,4.052574,121.62,121.57,4.1779059]
[1769365922568,4.052574,121.61,121.57,4.1779059]
[1769365923461,4.052574,121.61,121.57,12.4030952]
[1769365925871,4.3894183,121.59,121.56,8.22604114]
[1769365926075,9.70980691,121.59,121.56,8.22604114]
[1769365926468,4.3894183,121.58,121.56,8.22604114]
[1769365927871,4.3894183,121.58,121.55,8.22706705]
[1769365928178,4.3894183,121.59,121.55,12.28503718]
[1769365929985,4.3894183,121.59,121.55,38.17309341]
[1769365930164,4.3894183,121.59,121.55,32.8527048]
[1769365930356,4.3894183,121.59,121.55,95.0527048]
[1769365930556,4.3894183,121.59,121.55,70.42706705]
[1769365930756,4.3894183,121.58,121.55,70.42706705]
[1769365931170,4.3894183,121.57,121.55,8.22706705]
[1769365931377,4.3894183,121.56,121.52,66.25797013]
[1769365931560,4.3894183,121.55,121.51,86.8312528]
[1769365931761,4.31150599,121.55,121.52,4.05797013]
[1769365932081,4.31150599,121.55,121.52,12.28674601]
[1769365932380,4.31150599,121.55,121.51,66.25797013]
[1769365932579,5.32038861,121.54,121.49,20.57691781]
[1769365932985,5.32038861,121.55,121.49,29.95527655]
[1769365933563,5.32038861,121.55,121.51,8.22965938]
[1769365933785,4.3894183,121.54,121.51,8.22965938]
[1769365934380,4.3894183,121.56,121.52,9.37835874]
[1769365934686,4.3894183,121.55,121.51,8.22965938]
[1769365934886,33.54495044,121.62,121.5,8.23016411]
[1769365934887,4.3894183,121.53,121.5,8.23016411]
[1769365935083,4.18502248,121.51,121.47,8.44585901]
[1769365935277,4.18502248,121.51,121.47,34.34674241]
[1769365935588,4.18502248,121.51,121.47,30.06638367]
[1769365935800,4.18502248,121.51,121.48,8.23154975]
[1769365936490,4.18502248,121.5,121.47,8.33235871]
[1769365936696,4.18502248,121.5,121.47,0.1]
[1769365936911,16.03286919,121.59,121.47,0.1]
[1769365936912,9.51294123,121.49,121.47,0.1]
[1769365937092,4.18502248,121.47,121.44,12.52980459]
[1769365937388,4.18502248,121.47,121.44,8.23435048]
[1769365937708,4.18502248,121.46,121.43,8.23497319]
[1769365937866,4.18502248,121.45,121.42,8.23576185]
[1769365938282,4.18502248,121.45,121.41,8.33655382]
[1769365938465,9.51294123,121.45,121.41,8.33655382]
[1769365939186,4.18502248,121.45,121.41,8.33655382]
[1769365939376,4.18502248,121.45,121.41,12.51934396]
[1769365939979,4.18502248,121.46,121.42,4.18279014]
[1769365940178,4.18502248,121.45,121.41,33.11072852]
[1769365940987,4.18502248,121.46,121.42,4.18279014]
[1769365941188,5.32791875,121.47,121.43,4.18279014]
[1769365941189,4.18502248,121.47,121.43,4.18279014]
[1769365941386,4.18502248,121.48,121.44,4.18279014]
[1769365941887,4.18502248,121.48,121.43,9.51070889]
[1769365942089,4.18502248,121.46,121.42,4.18279014]
[1769365942266,4.18502248,121.46,121.41,34.25585713]
[1769365942267,4.18502248,121.43,121.41,0.1]
[1769365942981,4.18502248,121.45,121.41,4.28279014]
[1769365943396,9.51294123,121.47,121.42,9.51070889]
[1769365943573,4.18502248,121.49,121.44,9.51070889]
[1769365943779,4.18502248,121.48,121.44,4.18279014]
[1769365944173,4.18502248,121.47,121.42,9.51070889]
[1769365944674,4.18502248,121.47,121.43,12.41798737]
[1769365945191,3.61812348,121.47,121.43,8.23519723]
[1769365945380,3.61812348,121.47,121.43,12.41798737]
[1769365945580,5.32791875,121.48,121.44,4.18279014]
[1769365945913,5.32791875,121.49,121.44,4.18279014]
[1769365946078,5.32791875,121.5,121.45,4.18279014]
[1769365946398,5.32791875,121.5,121.45,9.51070889]
[1769365946794,5.32791875,121.5,121.46,8.23316318]
[1769365947291,13.57252411,121.53,121.44,5.32791875]
[1769365947292,4.18502248,121.48,121.44,5.32791875]
[1769365947474,4.18502248,121.47,121.43,8.23494405]